fUSD/lending_fUSD_20251103
["ID","MTS","AMOUNT","RATE_DAILY","PERIOD"]
[392980047,1762193442281,-557.65619565,0.00037002,30]
[392980048,1762193442292,-557.65619565,0.00037002,30]
[392980049,1762193442306,-557.65619565,0.00037002,30]
[392980050,1762193442315,-557.65619565,0.00037002,30]
[392980051,1762193442326,-557.65619565,0.00037002,30]
[392980052,1762193442337,-557.65619565,0.00037002,30]
[392980053,1762193442347,-557.65619565,0.00037002,30]
[392980054,1762193442356,-557.65619565,0.00037002,30]
[392980055,1762193442366,-557.65619565,0.00037002,30]
[392980056,1762193442376,-557.65619565,0.00037002,30]
[392980057,1762193442386,-557.65,0.00037002,30]
[392980058,1762193442396,-1000.0,0.0003703,120]
[392980059,1762193442406,-168.0,0.00037058,2]
[392980060,1762193442415,-23167.9032879,0.00037071,4]
[392980062,1762193442425,-168.0,0.00037076,2]
[392980063,1762193442435,-500.0,0.00037088,2]
[392980064,1762193442445,-186.0,0.00037092,120]
[392980066,1762193442457,-540.50074733,0.00037092,31]
[392980067,1762193442467,-151.40871931,0.00037092,31]
[392980068,1762193442477,-471.14315359,0.00037092,2]
[392980070,1762193442486,-471.14315359,0.00037092,2]
[392980071,1762193442495,-151.0,0.00037099,14]
[392980072,1762193442505,-188.0,0.000371,2]
[392980073,1762193442514,-250.0,0.000371,14]
[392980074,1762193442524,-255.0,0.000371,14]
[392980075,1762193442533,-209.58,0.000371,2]
[392980076,1762193442544,-506.4537,0.000371,23]
[392980077,1762193442553,-1500.0,0.000371,23]
[392980078,1762193442563,-1000.0,0.000371,7]
[392980079,1762193442573,-3209.0,0.00037101,5]
[392980080,1762193442582,-151.0,0.00037101,31]
[392980081,1762193442592,-241.850193,0.00037101,31]
[392980082,1762193442602,-151.0,0.00037101,30]
[392980084,1762193442611,-151.0,0.00037101,31]
[392980085,1762193442622,-151.0,0.00037101,31]
[392980087,1762193442636,-151.0,0.00037101,31]
[392980090,1762193442646,-151.0,0.00037101,31]
[392980092,1762193442655,-151.0,0.00037101,31]
[392980094,1762193442665,-175.260972,0.00037101,31]
[392980096,1762193442674,-151.0,0.00037101,31]
[392980097,1762193442683,-151.0,0.00037101,15]
[392980098,1762193442693,-151.0,0.00037101,31]
[392980099,1762193442702,-151.0,0.00037101,15]
[392980100,1762193442712,-151.0,0.00037101,31]
[392980101,1762193442721,-180.410312,0.00037101,31]
[392980103,1762193442731,-161.595887,0.00037101,31]
[392980104,1762193442740,-151.0,0.00037101,31]
[392980105,1762193442750,-151.0,0.00037101,31]
[392980106,1762193442759,-151.0,0.00037101,31]
[392980107,1762193442769,-198.981655,0.00037101,31]
[392980108,1762193442779,-151.0,0.00037101,31]
[392980109,1762193442788,-151.0,0.00037101,31]
[392980110,1762193442797,-151.0,0.00037101,31]
[392980111,1762193442807,-151.0,0.00037101,31]
[392980112,1762193442816,-151.0,0.00037101,31]
[392980113,1762193442828,-151.0,0.00037101,31]
[392980114,1762193442837,-155.070825,0.00037101,31]
[392980115,1762193442849,-151.0,0.00037101,31]
[392980116,1762193442859,-151.0,0.00037101,31]
[392980117,1762193442868,-151.0,0.00037101,31]
[392980118,1762193442878,-151.0,0.00037101,31]
[392980119,1762193442887,-151.0,0.00037101,31]
[392980120,1762193442897,-150.0,0.00037101,20]
[392980121,1762193442906,-999.0,0.00037101,120]
[392980122,1762193442915,-300.0,0.00037101,10]
[392980123,1762193442924,-666.0,0.00037101,10]
[392980124,1762193442934,-368.0945557,0.00037102,31]
[392980125,1762193442943,-31980.73361577,0.00037102,24]
[392980126,1762193442952,-151.0,0.00037102,31]
[392980127,1762193442962,-152.793943,0.00037102,31]
[392980128,1762193442971,-153.31288,0.00037102,31]
[392980129,1762193442980,-151.0,0.00037102,31]
[392980130,1762193442989,-151.0,0.00037102,31]
[392980131,1762193442998,-151.0,0.00037102,31]
[392980132,1762193443007,-151.0,0.00037102,7]
[392980133,1762193443016,-151.0,0.00037102,31]
[392980134,1762193443026,-151.0,0.00037102,31]
[392980135,1762193443035,-151.0,0.00037102,31]
[392980136,1762193443044,-151.0,0.00037102,31]
[392980137,1762193443053,-151.0,0.00037102,31]
[392980138,1762193443062,-171.509977,0.00037102,31]
[392980139,1762193443072,-157.875105,0.00037102,31]
[392980140,1762193443081,-151.0,0.00037102,31]
[392980141,1762193443091,-151.0,0.00037102,31]
[392980142,1762193443100,-151.0,0.00037102,31]
[392980143,1762193443109,-151.0,0.00037102,31]
[392980144,1762193443119,-151.0,0.00037102,31]
[392980146,1762193443129,-151.0,0.00037102,31]
[392980148,1762193443138,-151.0,0.00037102,31]
[392980149,1762193443147,-151.0,0.00037102,31]
[392980151,1762193443156,-151.0,0.00037102,31]
[392980153,1762193443165,-151.0,0.00037102,31]
[392980155,1762193443175,-171.022124,0.00037102,31]
[392980157,1762193443183,-151.0,0.00037102,31]
[392980159,1762193443193,-154.050981,0.00037102,31]
[392980161,1762193443203,-171.022124,0.00037102,31]
[392980163,1762193443212,-151.0,0.00037102,31]
[392980164,1762193443222,-171.022124,0.00037102,31]
[392980165,1762193443231,-171.022124,0.00037102,31]
[392980166,1762193443243,-183.48159925,0.00037102,31]
[392980167,1762193443252,-151.0,0.00037102,31]
[392980168,1762193443261,-151.0,0.00037102,31]
[392980169,1762193443270,-151.0,0.00037102,31]
[392980170,1762193443279,-154.199714,0.00037102,31]
[392980171,1762193443289,-151.0,0.00037102,31]
[392980172,1762193443299,-151.0,0.00037102,31]
[392980173,1762193443312,-151.0,0.00037102,31]
[392980174,1762193443322,-239.034408,0.00037102,31]
[392980175,1762193443332,-151.0,0.00037102,31]
[392980176,1762193443342,-151.0,0.00037102,31]
[392980177,1762193443351,-151.0,0.00037102,31]
[392980178,1762193443361,-151.0,0.00037102,31]
[392980179,1762193443370,-151.0,0.00037102,31]
[392980180,1762193443380,-151.0,0.00037102,31]
[392980181,1762193443390,-151.0,0.00037102,31]
[392980182,1762193443399,-151.0,0.00037102,31]
[392980183,1762193443408,-151.0,0.00037102,31]
[392980184,1762193443417,-226.0,0.00037102,2]
[392980185,1762193443427,-317.0,0.00037102,2]
[392980186,1762193443436,-181.0,0.00037102,14]
[392980187,1762193443445,-182.94288369,0.00037102,7]
[392980188,1762193443455,-151.0,0.00037102,31]
[392980189,1762193443464,-151.0,0.00037102,31]
[392980190,1762193443473,-151.0,0.00037102,31]
[392980191,1762193443482,-151.0,0.00037102,31]
[392980192,1762193443492,-151.0,0.00037102,31]
[392980193,1762193443501,-157.236279,0.00037102,31]
[392980194,1762193443510,-151.0,0.00037102,31]
[392980195,1762193443519,-151.0,0.00037102,31]
[392980196,1762193443529,-151.0,0.00037102,31]
[392980197,1762193443538,-151.0,0.00037102,31]
[392980198,1762193443549,-151.0,0.00037102,30]
[392980199,1762193443558,-151.0,0.00037102,31]
[392980200,1762193443568,-151.0,0.00037102,31]
[392980201,1762193443578,-174.073123,0.00037102,31]
[392980202,1762193443589,-151.0,0.00037102,31]
[392980203,1762193443598,-174.073123,0.00037102,31]
[392980204,1762193443607,-151.0,0.00037102,31]
[392980205,1762193443616,-151.0,0.00037102,31]
[392980206,1762193443626,-174.073123,0.00037102,31]
[392980207,1762193443635,-174.073123,0.00037102,31]
[392980208,1762193443645,-151.0,0.00037102,31]
[392980209,1762193443654,-151.0,0.00037102,31]
[392980210,1762193443664,-151.0,0.00037102,31]
[392980211,1762193443673,-153.237069,0.00037102,31]
[392980212,1762193443684,-151.0,0.00037102,31]
[392980213,1762193443693,-151.0,0.00037102,31]
[392980214,1762193443702,-151.0,0.00037102,31]
[392980215,1762193443711,-270.645028,0.00037102,31]
[392980216,1762193443721,-151.0,0.00037102,31]
[392980217,1762193443730,-151.0,0.00037102,31]
[392980218,1762193443739,-151.0,0.00037102,31]
[392980219,1762193443748,-151.0,0.00037102,31]
[392980220,1762193443757,-151.0,0.00037102,31]
[392980221,1762193443767,-151.0,0.00037102,31]
[392980222,1762193443777,-281.07958,0.00037102,31]
[392980223,1762193443786,-339.606897,0.00037102,31]
[392980224,1762193443795,-339.606897,0.00037102,31]
[392980225,1762193443805,-339.606897,0.00037102,31]
[392980226,1762193443814,-339.606897,0.00037102,31]
[392980227,1762193443826,-151.0,0.00037102,31]
[392980228,1762193443836,-151.0,0.00037102,31]
[392980229,1762193443846,-151.0,0.00037102,31]
[392980230,1762193443855,-151.0,0.00037102,31]
[392980231,1762193443865,-252.249103,0.00037102,31]
[392980232,1762193443874,-151.0,0.00037102,31]
[392980233,1762193443884,-252.249103,0.00037102,31]
[392980234,1762193443894,-151.0,0.00037102,31]
[392980235,1762193443904,-252.249103,0.00037102,31]
[392980236,1762193443913,-151.0,0.00037102,31]
[392980237,1762193443922,-151.0,0.00037102,31]
[392980238,1762193443932,-252.249103,0.00037102,31]
[392980239,1762193443943,-151.0,0.00037102,31]
[392980240,1762193443952,-151.0,0.00037102,31]
[392980241,1762193443962,-151.0,0.00037102,31]
[392980242,1762193443972,-151.0,0.00037102,31]
[392980243,1762193443981,-160.559873,0.00037102,31]
[392980244,1762193443990,-151.0,0.00037102,31]
[392980245,1762193444000,-151.0,0.00037102,31]
[392980246,1762193444010,-151.0,0.00037102,31]
[392980247,1762193444019,-151.0,0.00037102,31]
[392980248,1762193444028,-151.0,0.00037102,31]
[392980249,1762193444039,-151.0,0.00037102,31]
[392980250,1762193444049,-151.0,0.00037102,31]
[392980251,1762193444058,-161.608616,0.00037102,31]
[392980252,1762193444068,-151.0,0.00037102,31]
[392980253,1762193444080,-151.0,0.00037102,31]
[392980254,1762193444090,-151.0,0.00037102,31]
[392980255,1762193444099,-151.0,0.00037102,31]
[392980256,1762193444109,-151.0,0.00037102,31]
[392980257,1762193444118,-151.0,0.00037102,31]
[392980258,1762193444127,-191.197817,0.00037102,31]
[392980259,1762193444135,-151.0,0.00037102,31]
[392980260,1762193444144,-151.0,0.00037102,31]
[392980261,1762193444153,-151.0,0.00037102,31]
[392980262,1762193444163,-273.006367,0.00037102,31]
[392980263,1762193444171,-151.0,0.00037102,31]
[392980264,1762193444181,-151.0,0.00037102,31]
[392980265,1762193444190,-151.0,0.00037102,31]
[392980266,1762193444200,-151.0,0.00037102,31]
[392980267,1762193444209,-151.0,0.00037102,31]
[392980268,1762193444218,-151.0,0.00037102,15]
[392980269,1762193444228,-151.0,0.00037102,15]
[392980270,1762193444237,-151.0,0.00037102,31]
[392980271,1762193444247,-151.0,0.00037102,15]
[392980272,1762193444256,-151.0,0.00037102,31]
[392980273,1762193444266,-151.0,0.00037102,15]
[392980274,1762193444275,-419.800359,0.00037102,31]
[392980275,1762193444285,-419.800359,0.00037102,31]
[392980276,1762193444295,-419.800359,0.00037102,31]
[392980277,1762193444308,-419.800359,0.00037102,31]
[392980278,1762193444317,-419.800359,0.00037102,31]
[392980279,1762193444327,-419.800359,0.00037102,31]
[392980280,1762193444337,-163.632111,0.00037102,31]
[392980281,1762193444345,-419.800359,0.00037102,31]
[392980282,1762193444355,-419.800359,0.00037102,31]
[392980283,1762193444364,-8811625.43686505,0.00037102,7]
[392980284,1762193444373,-17260.70647338,0.00037102,20]
[392980285,1762193444384,-4469.84240074,0.00037102,20]
[392980286,1762193444392,-12016.74092648,0.00037102,7]
[392980287,1762193444401,-193.56170368,0.00037102,2]
[392980288,1762193444410,-404.57075999,0.00037102,2]
[392980289,1762193444419,-1224.04699082,0.00037102,2]
[392980290,1762193444428,-3300.0,0.00037102,18]
[392980291,1762193444438,-374.67684445,0.00037102,20]
[392980292,1762193444447,-500.0,0.00037102,5]
[392980293,1762193444456,-244.77368785,0.00037102,14]
[392980294,1762193444464,-40000.0,0.00037102,10]
[392980295,1762193444473,-5096.88929011,0.00037102,2]
[392980296,1762193444482,-1036.22604884,0.00037102,7]
[392980297,1762193444491,-204.13929426,0.00037102,10]
[392980298,1762193444500,-487820.83394332,0.00037102,2]
[392980299,1762193444521,-252.46568549,0.00037102,2]
[392980300,1762193444558,-500.0,0.00028101,3]
[392980301,1762193444568,-1000.0,0.00030341,3]
[392980302,1762193444579,-273.9331726,0.00037102,2]
[392980303,1762193444597,-500.0,0.00034199,3]
[392980304,1762193444607,-396.10865946,0.00036439,3]
[392980305,1762193444617,-603.89134054,0.00036439,3]
[392980306,1762193444626,-749.1046986,0.00037102,2]
[392980307,1762193444638,-2642.72922583,0.00037102,2]
[392980308,1762193444648,-2091.18448181,0.00037102,2]
[392980309,1762193444659,-434035.13104957,0.00037102,2]
[392980310,1762193444669,-1288.0928775,0.00037102,2]
[392980311,1762193444680,-4083.58751927,0.00037102,2]
[392980312,1762193444690,-1147.71911315,0.00037102,2]
[392980313,1762193444701,-2142.0,0.00037102,2]
[392980314,1762193444711,-303.9295232,0.00037102,2]
[392980315,1762193444721,-24312.95449009,0.00037102,2]
[392980316,1762193444774,-500.0,0.00035499,3]
[392980317,1762193444783,-681.27642147,0.00036262,20]
[392980318,1762193444791,-1264.82357846,0.00036922,2]
[392980319,1762193444886,-735.16642154,0.00036922,2]
[392980320,1762193444895,-415.015873,0.00037102,30]
[392980321,1762193444904,-415.015873,0.00037102,30]
[392980322,1762193444913,-415.015873,0.00037102,30]
[392980323,1762193444923,-415.015873,0.00037102,30]
[392980324,1762193444932,-7789.64362198,0.00037102,2]
[392980325,1762193444943,-10808.75,0.00037102,2]
[392980326,1762193444954,-999.6071704,0.00037102,2]
[392980332,1762193445859,-5000.0,0.00023449,2]
[392980333,1762193445869,-134.59914874,0.00037102,30]
[392980334,1762193446123,-280.41672426,0.00037102,30]
[392980335,1762193446133,-415.015873,0.00037102,30]
[392980336,1762193446143,-74304.56740284,0.00037102,2]
[392980338,1762193515657,151.0,0.00027,120]
[392980339,1762193592187,200.0,0.00015,2]
[392980340,1762193592328,250.87991388,0.00015,2]
[392980342,1762193972782,200.0,0.00015,2]
[392980343,1762193972976,200.0,0.00015,2]
[392980344,1762194003186,191.21,0.0002739,120]
[392980345,1762194285004,1000.0,0.00013699,2]
[392980348,1762194308250,9283735.27311872,0.00015,2]
[392980349,1762194332399,576.00579121,0.0002,120]
[392980350,1762194365010,1195.50455797,0.00014999,5]
[392980352,1762194402687,-15151.02526082,0.000147,2]
[392980353,1762194402708,-5161.43135385,0.000149,2]
[392980354,1762194402732,-174.83290963,0.00014999,2]
[392980355,1762194402752,-218.44974787,0.00014999,2]
[392980356,1762194402774,-500.0,0.00014999,2]
[392980357,1762194402795,-179.45601338,0.00014999,2]
[392980358,1762194402821,-500.0,0.00014999,2]
[392980359,1762194402844,-500.0,0.00014999,2]
[392980360,1762194402867,-500.0,0.00014999,2]
[392980361,1762194402890,-500.0,0.00014999,2]
[392980362,1762194402913,-249.21349892,0.00014999,2]
[392980363,1762194402941,-500.0,0.00014999,2]
[392980364,1762194402965,-500.0,0.00014999,2]
[392980365,1762194402988,-500.0,0.00014999,2]
[392980366,1762194403012,-500.0,0.00014999,2]
[392980367,1762194403036,-500.0,0.00014999,2]
[392980368,1762194403060,-500.0,0.00014999,2]
[392980369,1762194403081,-710365.59121553,0.00015,2]
[392980370,1762194432777,-500.0,0.00014973,2]
[392980371,1762194432798,-195.0,0.00014986,2]
[392980372,1762194432824,-327.13581963,0.00014999,2]
[392980373,1762194432845,-300.0,0.00014999,2]
[392980374,1762194432866,-150.0,0.00014999,2]
[392980375,1762194432887,-744527.86418037,0.00015,2]
[392980377,1762194458542,-180000.0,0.00015,2]
[392980378,1762194475326,-420.6419557,0.00014999,2]
[392980379,1762194475354,-99579.3580443,0.00015,2]
[392980380,1762194481912,-50000.0,0.00015,2]
[392980383,1762194511048,-160000.0,0.00015,2]
[392980388,1762194526990,269.95775601,0.00027,120]
[392980389,1762194550393,-174.10839772,0.000149,2]
[392980390,1762194550416,-625.73189267,0.00014998,2]
[392980391,1762194550437,-300.0,0.00014999,2]
[392980392,1762194550460,-49900.15970961,0.00015,2]
[392980396,1762194597421,-1416.10252666,0.00014885,2]
[392980397,1762194597443,-1818.7869931,0.000149,2]
[392980398,1762194597465,-419765.11048024,0.00015,2]
[392980428,1762194631926,-302.0,0.00014897,2]
[392980429,1762194632117,-73.979577,0.00014897,2]
[392980430,1762194632126,-1657.4950611,0.000149,2]
[392980431,1762194632136,-500.0,0.00014973,2]
[392980432,1762194632146,-500.0,0.00014973,2]
[392980433,1762194632155,-500.0,0.00014973,2]
[392980434,1762194632166,-500.0,0.00014973,2]
[392980436,1762194632176,-500.0,0.00014973,2]
[392980438,1762194632185,-1413.42946077,0.0001499,2]
[392980440,1762194632195,-300.0,0.00014999,2]
[392980442,1762194632205,-300.0,0.00014999,2]
[392980444,1762194632214,-1200.0,0.00014999,2]
[392980445,1762194632224,-150.0,0.00014999,2]
[392980447,1762194632233,-500.0,0.00014999,2]
[392980448,1762194632244,-500.0,0.00014999,2]
[392980449,1762194632255,-350.0,0.00014999,2]
[392980450,1762194632264,-7686.10396289,0.00015,2]
[392980451,1762194632276,-28565.5915862,0.00015,2]
[392980452,1762194632291,-383.47776338,0.00015,2]
[392980460,1762194638071,-529.51456646,0.00015,2]
[392980461,1762194638084,-937585.33400895,0.00015,2]
[392980462,1762194638094,-969651.19780794,0.00015,2]
[392980463,1762194638104,-1164.5931442,0.00015,2]
[392980464,1762194638115,-412.54907918,0.00015,2]
[392980465,1762194638124,-250.0,0.00015512,2]
[392980466,1762194638135,-1000.0,0.00015521,2]
[392980467,1762194638145,-1000.0,0.00015521,2]
[392980468,1762194638155,-154.95177799,0.00016024,2]
[392980469,1762194638165,-1556.56110642,0.00016068,2]
[392980470,1762194638176,-255.0,0.00016124,2]
[392980471,1762194638186,-250.0,0.0001639,2]
[392980472,1762194638196,-3192.1587542,0.00016395,2]
[392980474,1762194638206,-16843.095467,0.00016395,2]
[392980476,1762194638216,-459.46030862,0.0001647,2]
[392980478,1762194638226,-195.0,0.0001647,2]
[392980480,1762194638237,-300.0,0.0001647,2]
[392980482,1762194638247,-1680.0,0.00016499,2]
[392980484,1762194638257,-250.0,0.000165,2]
[392980486,1762194638270,-1579.89532872,0.00016784,2]
[392980489,1762194638280,-250.0,0.00017,2]
[392980490,1762194638289,-1657.49506106,0.00017233,2]
[392980493,1762194638299,-433.0,0.00017339,2]
[392980494,1762194638309,-477.5520043,0.00017573,2]
[392980496,1762194638318,-3462.75,0.00017577,2]
[392980498,1762194638327,-16036.53,0.00017577,2]
[392980500,1762194638337,-200.0,0.00017577,2]
[392980502,1762194638347,-200.0,0.00017731,2]
[392980505,1762194638359,-16843.095467,0.00018093,2]
[392980507,1762194638375,-1000.0,0.000181,2]
[392980509,1762194638384,-1032.018,0.000181,2]
[392980511,1762194638393,-279.6131,0.000181,2]
[392980513,1762194638402,-4063.5368,0.000181,2]
[392980514,1762194638412,-2139.5913,0.000181,2]
[392980516,1762194638422,-166.66,0.00018104,2]
[392980519,1762194638432,-1780.0,0.00018149,2]
[392980521,1762194638443,-500.0,0.00018173,2]
[392980522,1762194638452,-501.36773096,0.00018173,2]
[392980525,1762194638462,-504.36006545,0.00018173,2]
[392980527,1762194638473,-511.4774966,0.00018173,2]
[392980528,1762194638482,-500.0,0.00018173,2]
[392980531,1762194638492,-500.0,0.00018173,2]
[392980532,1762194638502,-504.14669281,0.00018173,2]
[392980535,1762194638512,-500.0,0.00018173,2]
[392980537,1762194638523,-500.0,0.00018173,2]
[392980539,1762194638533,-151.0,0.00018189,2]
[392980541,1762194638543,-151.0,0.00018189,2]
[392980542,1762194638554,-151.0,0.00018189,2]
[392980543,1762194638564,-151.0,0.00018189,2]
[392980544,1762194638575,-151.0,0.00018189,2]
[392980545,1762194638586,-151.0,0.00018189,2]
[392980546,1762194638595,-151.0,0.00018189,2]
[392980547,1762194638606,-151.0,0.00018189,2]
[392980548,1762194638615,-151.0,0.00018189,2]
[392980549,1762194638626,-151.0,0.00018189,2]
[392980550,1762194638636,-151.0,0.00018189,2]
[392980551,1762194638646,-151.0,0.00018189,2]
[392980552,1762194638662,-151.0,0.00018189,2]
[392980553,1762194638673,-151.0,0.00018189,2]
[392980554,1762194638683,-151.0,0.00018189,2]
[392980555,1762194638694,-151.0,0.00018189,2]
[392980556,1762194638704,-151.0,0.00018189,2]
[392980557,1762194638714,-151.0,0.00018189,2]
[392980558,1762194638724,-151.0,0.00018189,2]
[392980559,1762194638736,-151.0,0.00018189,2]
[392980560,1762194638747,-151.0,0.00018189,2]
[392980561,1762194638757,-151.0,0.00018189,2]
[392980562,1762194638767,-151.0,0.00018189,2]
[392980563,1762194638777,-151.0,0.00018189,2]
[392980564,1762194638788,-151.0,0.00018189,2]
[392980565,1762194638798,-151.0,0.00018189,2]
[392980566,1762194638809,-151.0,0.00018189,2]
[392980567,1762194638820,-151.0,0.00018189,2]
[392980568,1762194638830,-151.0,0.00018189,2]
[392980569,1762194638840,-151.0,0.00018189,2]
[392980570,1762194638851,-151.0,0.00018189,2]
[392980571,1762194638861,-151.0,0.00018189,2]
[392980572,1762194638871,-151.0,0.00018189,2]
[392980573,1762194638883,-151.0,0.00018189,2]
[392980574,1762194638894,-151.0,0.00018189,2]
[392980575,1762194638904,-151.0,0.00018189,2]
[392980576,1762194638914,-151.0,0.00018189,2]
[392980577,1762194638925,-151.0,0.00018189,2]
[392980578,1762194638935,-151.0,0.00018189,2]
[392980579,1762194638946,-151.0,0.00018189,2]
[392980580,1762194638956,-500.0,0.00018199,2]
[392980581,1762194638966,-500.0,0.00018199,2]
[392980582,1762194638977,-500.0,0.00018199,2]
[392980583,1762194638987,-505.53346,0.00018199,2]
[392980584,1762194638996,-500.0,0.00018199,2]
[392980585,1762194639006,-1648.02,0.00018199,2]
[392980586,1762194639016,-500.0,0.00018199,2]
[392980587,1762194639027,-500.0,0.00018199,2]
[392980588,1762194639036,-420000.0,0.000182,2]
[392980589,1762194639046,-510.72939817,0.00018566,2]
[392980590,1762194639055,-318.0,0.00018629,2]
[392980591,1762194639065,-166.66,0.00018702,2]
[392980592,1762194639075,-1000.0,0.00018721,2]
[392980593,1762194639085,-500.0,0.00018721,2]
[392980594,1762194639095,-169.65,0.000188,2]
[392980595,1762194639105,-790.0,0.0001893,2]
[392980596,1762194639114,-300.0,0.00019,2]
[392980597,1762194639125,-1387.90342288,0.00019,2]
[392980598,1762194639135,-800.17720091,0.00019,3]
[392980599,1762194639144,-532.97,0.00019178,2]
[392980600,1762194639153,-532.97,0.00019178,2]
[392980601,1762194639163,-532.97,0.00019178,2]
[392980602,1762194639174,-532.97,0.00019178,2]
[392980603,1762194639186,-532.97,0.00019178,2]
[392980604,1762194639198,-532.97,0.00019178,2]
[392980605,1762194639208,-532.97,0.00019178,2]
[392980606,1762194639220,-532.97,0.00019178,2]
[392980607,1762194639231,-532.97,0.00019178,2]
[392980608,1762194639241,-532.97,0.00019178,2]
[392980609,1762194639250,-532.97,0.00019178,2]
[392980610,1762194639260,-532.97,0.00019178,2]
[392980611,1762194639270,-532.97,0.00019178,2]
[392980612,1762194639280,-532.97,0.00019178,2]
[392980613,1762194639292,-532.97,0.00019178,2]
[392980614,1762194639303,-532.97,0.00019178,2]
[392980615,1762194639312,-492.0,0.00019299,2]
[392980616,1762194639323,-166.66,0.000193,2]
[392980617,1762194639333,-322.0,0.00019337,2]
[392980618,1762194639342,-245.0,0.00019368,2]
[392980619,1762194639352,-318.0,0.00019376,2]
[392980620,1762194639362,-173.0,0.00019414,2]
[392980621,1762194639372,-361.0,0.00019453,2]
[392980622,1762194639383,-158.9282261,0.00019461,2]
[392980623,1762194639394,-153.0,0.00019491,2]
[392980624,1762194639404,-1657.49506106,0.00019567,2]
[392980625,1762194639415,-16843.095467,0.00019791,2]
[392980626,1762194639427,-166.66,0.00019897,2]
[392980627,1762194639437,-5498.8551464,0.0002,5]
[392980628,1762194639448,-506.4901908,0.0002,14]
[392980629,1762194639459,-1000.0,0.00020187,2]
[392980630,1762194639469,-154.95177794,0.00020219,2]
[392980631,1762194639480,-373.0,0.0002039,2]
[392980632,1762194639491,-499.0,0.0002043,2]
[392980633,1762194639501,-480.0,0.00020471,2]
[392980634,1762194639512,-166.66,0.00020495,2]
[392980635,1762194639523,-153.0,0.00020512,2]
[392980636,1762194639534,-212.0,0.00020552,2]
[392980637,1762194639544,-192.0,0.00020593,2]
[392980638,1762194639555,-510.72939817,0.00020614,2]
[392980639,1762194639566,-244.0,0.00020634,2]
[392980640,1762194639577,-509.0,0.00020676,2]
[392980641,1762194639588,-226.36588681,0.00020987,4]
[392980642,1762194639598,-350.0,0.00021,2]
[392980643,1762194639608,-166.66,0.00021093,2]
[392980644,1762194639618,-6262.0509641,0.00021157,2]
[392980645,1762194639629,-16843.095467,0.00021489,2]
[392980646,1762194639640,-1000.0,0.00021697,7]
[392980647,1762194639654,-500.0,0.00021918,4]
[392980648,1762194639667,-500.0,0.00021918,4]
[392980649,1762194639681,-500.0,0.00021918,4]
[392980650,1762194639691,-500.0,0.00021918,4]
[392980651,1762194639701,-500.0,0.00021918,4]
[392980652,1762194639712,-500.0,0.00021918,4]
[392980653,1762194639723,-500.0,0.00021918,4]
[392980654,1762194639735,-500.0,0.00021918,4]
[392980655,1762194639746,-500.0,0.00021918,4]
[392980656,1762194639757,-500.0,0.00021918,4]
[392980657,1762194639768,-500.0,0.00021918,4]
[392980658,1762194639778,-500.0,0.00021918,4]
[392980659,1762194639789,-251.31817647,0.00021918,4]
[392980660,1762194639799,-500.0,0.00021918,4]
[392980661,1762194639810,-500.0,0.00021918,4]
[392980662,1762194639822,-500.0,0.00021918,4]
[392980663,1762194639834,-500.0,0.00021918,4]